bitfinex/quotes_SOLUSD_20250830
["timestamp","ask_amount","ask_price","bid_price","bid_amount"]
[1756526298708,52.65293337,205.91,205.9,0.03]
[1756526299505,52.5107718,205.91,205.9,0.03]
[1756526300101,33.3386871,205.91,205.9,0.03]
[1756526300292,21.65428111,205.91,205.9,0.03]
[1756526301304,26.5107718,205.91,205.9,0.03]
[1756526301807,26.65293337,205.91,205.9,0.03]
[1756526302113,26.5107718,205.91,205.9,0.03]
[1756526305217,26.65293337,205.91,205.9,0.03]
[1756526309404,52.65293337,205.91,205.9,0.03]
[1756526309732,26.65293337,205.91,205.9,0.03]
[1756526312204,19.31424627,205.91,205.9,0.03]
[1756526312405,26.65293337,205.91,205.9,0.03]
[1756526314314,52.65293337,205.91,205.9,0.03]
[1756526314621,39.86,205.94,205.9,0.03]
[1756526314622,4.85578323,205.94,205.9,0.03]
[1756526314820,20.93428111,205.91,205.9,0.03]
[1756526315329,46.93428111,205.91,205.9,0.03]
[1756526315820,7.3386871,205.91,205.9,0.03]
[1756526316120,33.3386871,205.91,205.9,0.03]
[1756526316425,38.19517779,205.91,205.9,0.03]
[1756526316920,51.7907718,205.91,205.9,0.03]
[1756526317129,52.62293337,205.91,205.9,0.03]
[1756526319616,52.4807718,205.91,205.9,0.03]
[1756526319818,51.7907718,205.91,205.9,0.03]
[1756526320320,51.93293337,205.91,205.9,0.03]
[1756526320533,52.62293337,205.91,205.9,0.03]
[1756526320706,26.62293337,205.91,205.9,0.03]
[1756526321327,52.62293337,205.91,205.9,0.03]
[1756526321531,26.62293337,205.91,205.9,0.03]
[1756526325315,23.87948248,205.91,205.9,0.03]
[1756526327533,23.04732091,205.91,205.9,0.03]
[1756526327920,49.04732091,205.91,205.9,0.03]
[1756526328122,23.04732091,205.91,205.9,0.03]
[1756526328418,23.87948248,205.91,205.9,0.03]
[1756526329228,27.12856044,205.91,205.9,0.03]
[1756526329530,13.73775558,205.9,205.88,0.03]
[1756526329838,4.73739778,205.89,205.88,0.03]
[1756526330035,5.42739778,205.89,205.88,0.03]
[1756526330827,10.28436023,205.89,205.88,0.03]
[1756526331224,13.53945111,205.89,205.88,0.03]
[1756526332338,39.73775558,205.86,205.85,1e-08]
[1756526332544,47.58808267,205.86,205.85,1e-08]
[1756526332754,48.27808267,205.86,205.85,1e-08]
[1756526333730,47.58808267,205.86,205.85,1e-08]
[1756526334048,13.59559401,205.91,205.85,5.05523622]
[1756526334356,26.0,205.89,205.86,0.46]
[1756526334529,26.0,205.89,205.87,0.46]
[1756526334935,30.59523621,205.89,205.87,0.46]
[1756526335130,26.0,205.89,205.87,0.46]
[1756526335341,29.26372135,205.88,205.85,1e-08]
[1756526335541,26.0,205.88,205.86,0.46]
[1756526335953,26.0,205.89,205.86,0.46]
[1756526336255,3.26372152,205.88,205.86,0.46]
[1756526336847,3.26372152,205.88,205.85,1e-08]
[1756526337050,3.26372152,205.88,205.85,0.46000001]
[1756526338150,4.8574343,205.87,205.85,1e-08]
[1756526338854,12.20775797,205.87,205.85,1e-08]
[1756526339055,0.69,205.86,205.85,1e-08]
[1756526339243,3.96121415,205.86,205.85,1e-08]
[1756526339437,3.27121415,205.86,205.85,1e-08]
[1756526340441,12.20752991,205.88,205.85,1e-08]
[1756526340442,3.27121415,205.87,205.85,1e-08]
[1756526340636,3.27121415,205.86,205.85,1e-08]
[1756526340854,3.27121415,205.87,205.85,1e-08]
[1756526341038,3.27121415,205.86,205.85,0.46000001]
[1756526341238,3.27121415,205.86,205.85,7.35032368]
[1756526341458,3.27121415,205.86,205.85,1e-08]
[1756526341632,3.27121415,205.86,205.85,7.35032368]
[1756526341833,3.27121415,205.86,205.85,7.81032368]
[1756526342035,3.27121415,205.89,205.85,7.81032368]
[1756526342238,3.27121415,205.88,205.85,7.81032368]
[1756526342531,3.27121415,205.87,205.85,7.81032368]
[1756526342759,3.27121415,205.86,205.85,0.46000001]
[1756526342957,3.27121415,205.88,205.85,7.81032368]
[1756526343253,3.27121415,205.87,205.85,7.81032368]
[1756526343458,3.27121415,205.86,205.85,0.46000001]
[1756526343633,3.27121415,205.88,205.85,0.46000001]
[1756526343952,3.27121415,205.87,205.85,0.46000001]
[1756526344156,3.27121415,205.86,205.85,0.46000001]
[1756526344353,3.27121415,205.88,205.85,0.46000001]
[1756526344542,3.27121415,205.87,205.85,0.46000001]
[1756526344744,3.27121415,205.86,205.85,0.46000001]
[1756526344938,3.27121415,205.88,205.85,1e-08]
[1756526345148,3.27121415,205.87,205.85,1e-08]
[1756526345449,3.27121415,205.88,205.85,1e-08]
[1756526345651,3.27121415,205.87,205.85,1e-08]
[1756526346236,4.85747637,205.87,205.85,1e-08]
[1756526346436,3.27121415,205.86,205.85,1e-08]
[1756526348443,8.12852135,205.88,205.85,1e-08]
[1756526348643,3.27121415,205.87,205.85,1e-08]
[1756526348844,3.27121415,205.86,205.85,1e-08]
[1756526349049,3.27121415,205.87,205.85,1e-08]
[1756526349364,3.27121415,205.86,205.85,1e-08]
[1756526349568,3.27121415,205.87,205.85,1e-08]
[1756526349861,3.27121415,205.86,205.85,1e-08]
[1756526350061,3.27121415,205.87,205.85,1e-08]
[1756526350264,3.27121415,205.86,205.85,1e-08]
[1756526350456,3.27121415,205.87,205.85,1e-08]
[1756526350657,134.87121415,205.86,205.85,1e-08]
[1756526350856,3.27121415,205.86,205.85,7.35032368]
[1756526351160,3.27121415,205.9,205.85,7.35032368]
[1756526351349,3.27121415,205.91,205.89,7.35032367]
[1756526351544,3.27121415,205.91,205.9,7.81032367]
[1756526351764,0.06,205.93,205.9,7.81032367]
[1756526352062,0.06,205.93,205.92,7.35032367]
[1756526352857,0.06,205.9,205.85,1e-08]
[1756526353056,0.06,205.9,205.89,7.35032367]
[1756526353262,0.06,205.9,205.89,7.81032367]
[1756526354452,0.06,205.9,205.89,12.66728612]
[1756526355371,0.06,205.9,205.89,9.90759987]
[1756526355953,0.06,205.9,205.89,14.49823729]
[1756526358654,0.06,205.93,205.89,52.78280499]
[1756526358851,0.06,205.93,205.92,4.59063742]
[1756526359351,0.06,205.93,205.92,39.72]
[1756526359552,0.06,205.93,205.92,43.85063742]
[1756526359754,0.06,205.93,205.92,44.31063742]
[1756526360164,0.06,205.93,205.92,49.16689227]
[1756526361259,0.06,205.93,205.92,48.70689227]
[1756526361459,0.06,205.93,205.88,30.85719836]
[1756526361673,0.06,205.93,205.92,4.59063742]
[1756526363480,0.06,205.93,205.91,4.85648711]
[1756526363788,0.06,205.93,205.92,4.59063742]
[1756526364664,0.06,205.93,205.92,5.05063742]
[1756526364979,0.06,205.93,205.92,5.31625485]
[1756526365160,0.06,205.93,205.92,43.77063742]
[1756526366389,0.06,205.93,205.92,49.08689227]
[1756526367072,0.06,205.93,205.92,48.62689227]
[1756526367867,0.06,205.93,205.92,49.08689227]
[1756526368871,0.06,205.93,205.92,48.62689227]
[1756526371783,0.06,205.93,205.92,49.22905384]
[1756526371984,0.06,205.93,205.92,10.04905384]
[1756526372289,0.06,205.93,205.92,49.14905384]
[1756526372688,0.06,205.93,205.92,48.56689227]
[1756526373689,0.06,205.93,205.92,43.71063742]
[1756526373882,0.06,205.93,205.92,4.59063742]
[1756526374082,0.06,205.93,205.92,39.1]
[1756526374083,0.77,205.93,205.92,39.1]
[1756526374588,5.36063742,205.93,205.88,4.59063742]
[1756526374772,0.71,205.92,205.89,39.12]
[1756526374968,0.71,205.91,205.87,4.59063742]
[1756526375175,0.71,205.9,205.88,39.12]
[1756526375375,0.71,205.89,205.88,39.12]
[1756526377999,26.0,205.92,205.88,39.12]
[1756526378192,0.06,205.93,205.91,4.59063742]
[1756526378398,0.06,205.93,205.92,43.71063742]
[1756526379706,5.62610408,205.93,205.85,4.85790021]
[1756526379996,0.71,205.92,205.88,4.59063742]
[1756526380190,0.71,205.91,205.89,39.18]
[1756526380391,0.71,205.9,205.89,39.18]
[1756526381083,0.71,205.9,205.89,43.77063742]
[1756526382185,0.71,205.9,205.89,39.18]
[1756526382881,0.06,205.93,205.89,43.77063742]
[1756526383192,0.06,205.93,205.92,4.59063742]
[1756526383397,0.06,205.93,205.92,43.77063742]
[1756526385799,0.77,205.93,205.92,43.77063742]
[1756526386690,0.06,205.93,205.92,43.77063742]
[1756526386892,0.77,205.93,205.92,43.77063742]
[1756526389300,0.77,205.93,205.92,39.18]
[1756526390591,0.77,205.93,205.91,4.59063742]
[1756526390790,0.06,205.93,205.92,39.06]
[1756526391503,0.77,205.93,205.92,39.06]
[1756526392195,0.77,205.93,205.92,39.02]
[1756526392398,0.77,205.93,205.91,4.59063742]
[1756526392604,0.71,205.92,205.9,4.62063742]
[1756526392779,0.06,205.93,205.91,39.0]
[1756526393098,0.06,205.93,205.91,43.59063742]
[1756526393292,0.06,205.93,205.92,4.59063742]
[1756526399904,0.06,205.93,205.91,43.85647889]
[1756526400098,0.06,205.93,205.92,4.59063742]
[1756526401413,0.06,205.93,205.92,9.90689227]
[1756526403915,0.06,205.95,205.92,9.90689227]
[1756526404095,0.06,205.95,205.9,9.93714534]
[1756526404302,0.06,205.95,205.94,4.59063742]
[1756526404518,0.06,205.95,205.94,43.43063742]
[1756526406091,0.75,205.95,205.94,43.43063742]
[1756526406493,0.06,205.95,205.94,43.43063742]
[1756526406712,0.06,205.95,205.94,38.84]
[1756526406898,0.75,205.95,205.9,0.03]
[1756526407106,0.75,205.95,205.94,4.59063742]
[1756526407298,0.75,205.95,205.94,43.43063742]
[1756526408196,0.06,205.95,205.94,43.43063742]
[1756526409820,0.06,205.95,205.94,38.84]
[1756526410002,0.75,205.95,205.94,43.43063742]
[1756526410421,0.06,205.95,205.94,4.59063742]
[1756526410617,0.06,205.95,205.94,43.43063742]
[1756526411015,0.06,205.95,205.94,48.74642065]
[1756526411229,0.06,205.95,205.94,43.43063742]
[1756526413243,0.06,205.95,205.94,48.74642065]
[1756526413818,0.06,205.95,205.94,48.88858222]
[1756526415538,0.06,205.95,205.94,50.83415522]
[1756526415838,0.06,205.95,205.94,48.88858222]
[1756526418847,0.06,205.95,205.94,50.83415522]
[1756526419342,0.06,205.98,205.95,39.73775558]
[1756526419514,0.06,205.98,205.97,4.73279899]
[1756526419921,0.06,205.98,205.97,5.19279899]
[1756526420148,0.06,205.98,205.97,9.78343641]
[1756526420335,0.06,205.98,205.97,5.19279899]
[1756526420927,0.06,205.98,205.97,43.43063742]
[1756526421334,0.06,205.98,205.97,48.2857134]
[1756526424927,0.06,205.98,205.97,48.7457134]
[1756526425335,0.06,205.98,205.97,48.88787497]
[1756526425748,0.06,205.98,205.97,50.83316397]
[1756526426047,0.06,206.0,205.99,26.0]
[1756526426255,4.59063742,206.08,205.99,30.59063742]
[1756526426453,0.06,206.09,206.01,4.59063742]
[1756526426454,0.69,206.02,206.01,4.59063742]
[1756526426654,0.69,206.02,206.01,38.82]
[1756526427236,0.69,206.02,205.99,4.59063742]
[1756526427533,0.69,206.01,206.0,38.82]
[1756526429040,0.69,206.01,206.0,43.41063742]
[1756526429238,0.69,206.01,206.0,48.26500635]
[1756526429552,0.69,206.01,206.0,43.41063742]
[1756526430055,0.69,206.01,206.0,38.82]
[1756526432035,0.69,206.01,205.99,4.59063742]
[1756526432235,0.7,206.0,205.97,4.59063742]
[1756526432451,0.7,206.0,205.98,38.82]
[1756526432738,0.7,205.99,205.98,38.82]
[1756526437755,0.7,206.01,205.98,48.2654644]
[1756526437974,0.7,206.01,206.0,4.59063742]
[1756526438152,0.7,206.01,206.0,43.41063742]
[1756526438549,131.6,206.03,206.0,43.41063742]
[1756526438861,0.7,206.01,206.0,43.41063742]
[1756526440374,131.6,206.03,206.0,43.41063742]
[1756526440544,0.7,206.07,206.02,4.59063742]
[1756526440749,131.66,206.09,206.05,4.59063742]
[1756526440966,0.7,206.08,206.06,43.41063742]
[1756526441376,0.7,206.07,206.06,38.82]
[1756526442479,4.85295544,206.06,206.0,4.59063742]
[1756526442777,4.59063742,206.03,206.01,38.82]
[1756526442979,4.59063742,206.03,206.02,38.82]
[1756526443485,5.29063742,206.03,206.02,38.82]
[1756526443970,5.29063742,206.03,205.96,4.59063742]
[1756526444278,4.59063742,206.01,205.97,38.82]
[1756526444466,0.7,206.0,205.94,4.85574422]
[1756526444782,0.7,206.0,205.95,43.41063742]
[1756526444962,0.7,205.99,205.95,43.41063742]
[1756526446663,0.7,205.99,205.96,4.59063742]
[1756526448383,9.44455823,206.02,205.96,4.59063742]
[1756526448704,132.3,206.01,205.96,4.59063742]
[1756526448872,0.7,206.0,205.96,4.59063742]
[1756526451098,131.6,206.01,205.96,4.59063742]
[1756526451299,0.7,206.0,205.96,4.59063742]
[1756526451684,5.55438208,206.0,205.96,4.59063742]
[1756526452605,0.7,206.0,205.96,4.59063742]
[1756526453584,131.6,206.01,205.98,4.59063742]
[1756526453897,131.6,206.01,205.99,38.8]
[1756526454393,0.7,206.0,205.99,38.8]
[1756526459606,5.55436893,206.0,205.99,38.8]
[1756526459996,131.66,206.01,205.99,38.8]
[1756526460513,0.06,206.01,206.0,4.59063742]
[1756526460898,0.06,206.01,205.95,14.620375]
[1756526461093,0.67,206.0,205.96,38.8]
[1756526461503,0.67,206.0,205.96,43.39063742]
[1756526463210,0.06,206.01,205.96,43.39063742]
[1756526463411,0.73,206.01,205.96,43.39063742]
[1756526463802,0.67,206.0,205.96,43.39063742]
[1756526464609,0.67,205.99,205.96,38.8]
[1756526465720,4.59063742,205.97,205.95,0.03]
[1756526465889,4.59063742,205.97,205.96,38.8]
[1756526466090,5.26063742,205.97,205.96,38.8]
[1756526466503,10.1157134,205.97,205.96,38.8]
[1756526467101,5.52507598,205.97,205.96,38.8]
[1756526467308,4.59063742,205.98,205.96,38.8]
[1756526467510,0.67,205.97,205.96,38.8]
[1756526468300,5.26063742,205.97,205.96,38.8]
[1756526468510,10.1157134,205.97,205.96,38.8]
[1756526470901,131.6,205.96,205.95,0.03]
[1756526471618,4.65063742,206.01,205.95,4.62063742]
[1756526471798,3.27141562,206.0,205.95,5.08063742]
[1756526472320,3.27141562,206.0,205.97,4.59063742]
[1756526472630,0.06,206.01,205.98,39.24]
[1756526472794,0.06,206.01,205.98,43.83063742]
[1756526473413,0.06,206.01,206.0,4.59063742]
[1756526473902,0.06,206.01,206.0,5.05063742]
[1756526475018,0.73,206.01,205.96,4.59063742]
[1756526475220,0.73,206.01,205.95,0.03]
[1756526475221,5.26063742,206.0,205.97,38.78]
[1756526475409,0.67,205.99,205.97,38.78]
[1756526475611,0.06,206.01,205.95,0.03]
[1756526475612,5.26063742,205.98,205.95,0.03]
[1756526475807,30.59063742,205.96,205.95,38.81]
[1756526476127,31.26063742,205.96,205.95,38.81]
[1756526476300,31.26063742,205.96,205.95,0.03]
[1756526476821,36.11594913,205.96,205.95,0.03]
[1756526477807,31.52531171,205.96,205.95,0.03]
[1756526478015,36.11594913,205.96,205.95,0.03]
[1756526478211,49.71154314,205.96,205.95,0.03]
[1756526478405,52.98202039,205.96,205.95,0.03]
[1756526478733,52.98202039,205.96,205.93,0.03]
[1756526478734,13.59559401,205.95,205.93,0.03]
[1756526478930,26.45465348,205.94,205.93,0.03]
[1756526479126,27.12465348,205.94,205.92,0.03]
[1756526479316,8.00327624,205.93,205.92,0.03]
[1756526479813,8.67327624,205.93,205.92,0.03]
[1756526480022,39.73775558,205.91,205.9,1e-08]
[1756526480244,52.18950767,205.91,205.9,1e-08]
[1756526480538,56.6986161,205.91,205.9,1e-08]
[1756526480702,13.59559401,205.9,205.88,0.03]
[1756526480909,44.59542584,205.86,205.82,0.03]
[1756526481128,52.45654051,205.86,205.82,0.03]
[1756526481307,53.12654051,205.86,205.82,0.03]
[1756526481709,55.07429251,205.86,205.82,0.03]
[1756526481921,39.73775558,205.83,205.82,0.03]
[1756526482230,44.328393,205.83,205.82,0.03]
[1756526482404,44.998393,205.83,205.82,0.03]
[1756526482606,40.40775558,205.83,205.82,0.03]
[1756526482808,5.26063742,205.83,205.82,0.03]
[1756526483029,30.59063742,205.83,205.82,0.03]
[1756526483217,0.67,205.85,205.82,0.03]
[1756526483424,30.59063742,205.84,205.82,0.03]
[1756526483608,4.59063742,205.83,205.82,0.03]
[1756526484920,31.26063742,205.84,205.82,0.03]
[1756526485115,14.26559401,205.83,205.82,0.03]
[1756526485317,44.85623143,205.83,205.82,0.03]
[1756526485526,18.998393,205.83,205.82,0.03]
[1756526485711,20.946429,205.83,205.82,0.03]
[1756526486035,13.59559401,205.76,205.74,0.2]
[1756526486334,18.18623143,205.75,205.74,0.2]
[1756526486515,18.85623143,205.75,205.74,0.2]
[1756526486920,30.59063742,205.75,205.74,0.2]
[1756526487126,26.0,205.75,205.74,0.2]
[1756526487326,33.36176527,205.75,205.74,0.2]
[1756526489212,46.95735928,205.75,205.74,0.2]
[1756526489436,47.62735928,205.75,205.74,0.2]
[1756526490136,46.95735928,205.75,205.74,0.2]
[1756526490335,39.59559401,205.75,205.74,0.2]
[1756526490512,33.36176527,205.75,205.74,0.2]
[1756526491433,34.06176527,205.75,205.74,0.2]
[1756526491636,38.92203258,205.75,205.74,0.2]
[1756526492926,38.22203258,205.75,205.74,0.2]
[1756526493526,131.6,205.77,205.74,0.72]
[1756526494050,138.96176527,205.77,205.74,0.2]
[1756526494424,7.36176527,205.75,205.74,0.2]
[1756526495018,8.06176527,205.75,205.74,0.2]
[1756526495338,26.0,205.75,205.74,0.2]
[1756526495540,33.36176527,205.75,205.74,0.2]
[1756526495731,7.36176527,205.76,205.74,0.2]
[1756526495924,131.6,205.77,205.74,0.2]
[1756526495925,138.96176527,205.77,205.74,0.2]
[1756526496440,131.6,205.77,205.74,0.2]
[1756526497021,131.6,205.77,205.75,0.52]
[1756526497618,131.6,205.77,205.76,7.36176527]
[1756526498432,131.6,205.77,205.75,4.86022936]
[1756526498433,131.6,205.77,205.75,7.36176527]
[1756526501544,0.7,205.76,205.74,0.2]
[1756526501747,8.06176527,205.75,205.74,0.2]
[1756526503023,12.92203258,205.75,205.74,0.2]
[1756526504133,26.7,205.75,205.74,0.2]
[1756526504336,34.06176527,205.75,205.74,0.2]
[1756526504559,38.92203258,205.75,205.74,0.2]
[1756526505057,52.51762659,205.75,205.74,0.2]
[1756526505351,54.46613659,205.75,205.74,0.2]
[1756526505552,54.60829816,205.75,205.74,0.2]
[1756526506136,93.38829816,205.75,205.74,0.2]
[1756526506338,33.50392684,205.72,205.71,0.03]
[1756526506523,47.09952085,205.72,205.71,0.03]
[1756526506729,47.79952085,205.72,205.71,0.03]
[1756526506927,47.79952085,205.72,205.69,0.03]
[1756526506928,0.14216157,205.7,205.69,0.03]
[1756526507130,59.87952085,205.7,205.69,0.03]
[1756526507427,62.42880572,205.7,205.69,0.03]
[1756526507652,65.18504565,205.7,205.69,0.03]
[1756526507834,26.40504565,205.7,205.69,0.03]
[1756526508354,31.26649436,205.7,205.69,0.03]
[1756526508560,7.361765,205.7,205.69,0.03]
[1756526508853,18.20111908,205.72,205.69,0.03]
[1756526509239,5.30552507,205.71,205.69,0.03]
[1756526509552,18.90111908,205.71,205.69,0.03]
[1756526510041,14.29559401,205.71,205.69,0.03]
[1756526511748,4.605525,205.73,205.69,0.03]
[1756526511953,11.96865014,205.73,205.69,0.03]
[1756526512147,8.06312514,205.72,205.69,0.03]
[1756526512344,7.36312514,205.71,205.69,0.03]
[1756526512663,0.7,205.71,205.69,0.03]
[1756526512966,26.0,205.72,205.69,0.03]
[1756526513337,26.7,205.72,205.69,0.03]
[1756526513752,0.7,205.71,205.69,0.03]
[1756526513956,131.6,205.7,205.69,0.03]
[1756526517488,132.3,205.7,205.69,0.03]
[1756526518037,131.6,205.7,205.69,0.03]
[1756526518238,132.3,205.7,205.69,0.03]
[1756526519267,144.52457385,205.7,205.69,0.03]
[1756526519585,132.3,205.7,205.69,0.03]
[1756526519882,0.7,205.7,205.69,0.03]
[1756526520367,26.7,205.7,205.69,0.03]
[1756526520556,0.7,205.7,205.69,0.03]
[1756526521564,26.52016786,205.7,205.69,0.03]
[1756526521764,34.02545443,205.7,205.69,0.03]
[1756526522271,39.73775558,205.67,205.66,0.03]
[1756526522476,47.10088072,205.67,205.66,0.03]
[1756526522670,47.76088072,205.67,205.66,0.03]
[1756526522988,55.12400572,205.67,205.66,0.03]
[1756526523162,55.12400572,205.67,205.64,0.03]
[1756526523163,13.73775558,205.65,205.54,7.56312514]
[1756526523348,39.59559401,205.61,205.54,0.2]
[1756526523549,12.22693836,205.6,205.54,7.56312514]
[1756526523777,7.36312514,205.59,205.54,0.2]
[1756526524191,8.02312514,205.59,205.54,0.2]
[1756526524389,7.36312514,205.6,205.54,7.56312514]
[1756526524696,7.36312514,205.6,205.54,8.11312514]
[1756526524869,26.0,205.65,205.59,7.36312514]
[1756526525069,26.0,205.65,205.6,7.36312514]
[1756526525286,34.02312514,205.64,205.58,0.55]
[1756526525492,34.02312514,205.64,205.58,7.91312514]
[1756526525799,34.02312514,205.64,205.59,7.36312514]
[1756526525992,33.36312514,205.64,205.58,7.36312514]
[1756526526191,8.02312514,205.63,205.57,7.36312514]
[1756526526393,8.02312514,205.63,205.56,4.86475137]
[1756526526590,8.02312514,205.63,205.57,7.36312514]
[1756526527087,7.36312514,205.61,205.56,7.36312514]
[1756526527294,8.02312514,205.61,205.56,7.36312514]
[1756526527488,0.66,205.61,205.56,7.36312514]
[1756526528104,0.66,205.61,205.56,7.91312514]
[1756526528514,131.6,205.6,205.54,0.2]
[1756526528679,131.6,205.6,205.56,7.36312514]
[1756526528880,132.26,205.6,205.56,7.36312514]
[1756526529175,132.26,205.6,205.54,0.2]
[1756526529382,132.26,205.6,205.56,7.36312514]
[1756526529678,0.66,205.59,205.55,7.36312514]
[1756526529991,0.66,205.58,205.54,0.2]
[1756526530383,0.66,205.58,205.55,0.03]
[1756526531214,7.36312514,205.59,205.55,0.03]
[1756526531417,0.66,205.59,205.55,0.03]
[1756526531728,131.6,205.6,205.56,7.91312514]
[1756526531896,131.6,205.6,205.57,7.36312514]
[1756526532290,131.6,205.6,205.56,0.55]
[1756526532493,131.6,205.6,205.55,0.03]
[1756526532817,131.6,205.6,205.56,7.36312514]
[1756526533329,0.66,205.59,205.55,4.63694196]
[1756526533494,131.6,205.6,205.55,5.18694196]
[1756526533812,131.6,205.6,205.56,4.60694196]
[1756526535050,131.6,205.6,205.57,4.60694196]
[1756526535193,131.6,205.6,205.56,0.55]
[1756526535394,131.6,205.6,205.57,4.60694196]
[1756526535595,131.6,205.6,205.56,0.55]
[1756526535913,131.6,205.6,205.57,4.60694196]
[1756526536423,0.66,205.59,205.55,4.89493528]
[1756526536801,0.66,205.59,205.56,4.60694196]
[1756526537018,131.6,205.6,205.56,9.47167212]
[1756526537511,132.26,205.6,205.56,4.60694196]
[1756526537720,0.66,205.59,205.55,4.63694196]
[1756526537912,0.66,205.58,205.55,0.03]
[1756526538124,131.6,205.6,205.56,4.60694196]
[1756526538316,0.66,205.59,205.56,4.60694196]
[1756526538508,131.6,205.6,205.56,4.60694196]
[1756526538820,131.6,205.6,205.57,4.60694196]
[1756526539037,131.6,205.6,205.56,5.41463048]
[1756526539257,131.6,205.6,205.57,4.60694196]
[1756526539602,31.26694196,205.62,205.57,4.60694196]
[1756526540026,0.66,205.61,205.57,4.60694196]
[1756526540821,0.66,205.61,205.56,4.86463048]
[1756526540822,0.66,205.6,205.56,4.60694196]
[1756526541028,0.66,205.59,205.55,0.03]
[1756526541529,0.66,205.59,205.55,4.63694196]
[1756526542025,0.66,205.58,205.55,4.63694196]
[1756526542428,0.66,205.57,205.55,0.03]
[1756526542630,5.26694196,205.57,205.55,0.03]
[1756526542832,0.66,205.56,205.55,0.03]
[1756526543913,26.66,205.58,205.55,0.03]
[1756526544114,0.66,205.56,205.55,0.03]
[1756526545431,0.66,205.59,205.55,0.03]
[1756526545631,162.20694196,205.61,205.55,0.03]
[1756526545834,158.26,205.61,205.56,4.60694196]
[1756526546018,157.6,205.61,205.56,4.60694196]
[1756526546219,0.66,205.6,205.56,4.60694196]
[1756526546427,0.66,205.66,205.59,4.60694196]
[1756526546628,131.6,205.69,205.64,4.60694196]
[1756526546629,132.26,205.69,205.64,4.60694196]
[1756526546829,132.26,205.69,205.6,0.55]
[1756526546830,0.06,205.7,205.66,4.60694196]
[1756526547126,0.66,205.69,205.66,4.60694196]
[1756526548515,0.06,205.7,205.66,4.60694196]
[1756526548924,0.06,205.7,205.64,4.8628292]
[1756526549120,0.06,205.7,205.66,4.60694196]
[1756526549648,0.06,205.67,205.66,4.60694196]
[1756526549850,0.06,205.67,205.65,4.862555]
[1756526550054,0.06,205.67,205.66,4.60694196]
[1756526551750,0.06,205.67,205.66,10.0193362]
[1756526553220,0.06,205.7,205.67,0.14216157]
[1756526553421,0.06,205.7,205.68,0.55]
[1756526553650,0.06,205.7,205.69,9.35604549]
[1756526553856,0.06,205.73,205.69,9.35604549]
[1756526554057,0.06,205.73,205.72,30.74910353]
[1756526554257,0.06,205.73,205.72,69.50910353]
[1756526554647,0.06,205.73,205.72,70.05910353]
[1756526555145,0.06,205.73,205.72,74.92007961]
[1756526555349,0.06,205.73,205.72,77.66771332]
[1756526557851,0.06,205.73,205.72,50.97555175]
[1756526558350,0.06,205.73,205.72,51.66771332]
[1756526560255,0.06,205.73,205.72,7.35457567]
[1756526560456,0.06,205.73,205.72,46.09457567]
[1756526560948,0.06,205.73,205.72,7.35457567]
[1756526561132,0.06,205.73,205.72,46.09457567]
[1756526561542,0.74,205.73,205.72,7.35457567]
[1756526561759,0.74,205.73,205.72,46.09457567]
[1756526562139,0.74,205.73,205.71,7.35457567]
[1756526562341,0.06,205.73,205.7,7.35457567]
[1756526562651,0.68,205.72,205.71,38.74]
[1756526563856,8.03457567,205.72,205.66,7.35457567]
[1756526564164,8.03457567,205.71,205.69,38.74]